fUST/lending_fUST_20250926
["ID","MTS","AMOUNT","RATE_DAILY","PERIOD"]
[387815931,1758887453337,-480.0,0.00040821,30]
[387815932,1758887453347,-923.27,0.00040821,30]
[387815933,1758887453356,-743.16,0.00040821,30]
[387815934,1758887453366,-480.0,0.00040821,30]
[387815935,1758887453376,-480.0,0.00040821,30]
[387815936,1758887453386,-152.55254,0.00040821,120]
[387815937,1758887453395,-152.55254,0.00040821,120]
[387815938,1758887453405,-152.55254,0.00040821,120]
[387815939,1758887453415,-153.356465,0.00040821,120]
[387815940,1758887453425,-151.0,0.00040821,120]
[387815941,1758887453435,-152.55254,0.00040821,120]
[387815942,1758887453444,-505.29,0.00040821,30]
[387815943,1758887453453,-151.0,0.00040821,120]
[387815944,1758887453463,-480.0,0.00040821,30]
[387815945,1758887453473,-1515.82,0.00040821,30]
[387815946,1758887453483,-2225.34,0.00040821,30]
[387815947,1758887453493,-897.36,0.00040821,30]
[387815948,1758887453502,-480.0,0.00040821,30]
[387815949,1758887453511,-1178.01,0.00040821,30]
[387815950,1758887453520,-480.0,0.00040821,30]
[387815951,1758887453530,-2461.48,0.00040821,30]
[387815952,1758887453539,-151.0,0.00040821,120]
[387815953,1758887453548,-151.0,0.00040821,120]
[387815954,1758887453557,-721.08,0.00040821,30]
[387815955,1758887453567,-151.0,0.00040821,120]
[387815956,1758887453577,-500.0,0.00040932,120]
[387815957,1758887453587,-3538.06577088,0.00040988,2]
[387815958,1758887453596,-310.26160241,0.00040995,120]
[387815959,1758887453605,-217.18,0.00040995,120]
[387815960,1758887453615,-180.19,0.00040995,120]
[387815961,1758887453623,-2037.07226942,0.00041012,5]
[387815962,1758887453633,-219.1,0.00041071,120]
[387815963,1758887453642,-480.0,0.00041095,30]
[387815964,1758887453651,-480.0,0.00041095,30]
[387815965,1758887453660,-483.85269836,0.00041095,30]
[387815966,1758887453670,-484.84780758,0.00041095,120]
[387815967,1758887453679,-480.0,0.00041095,120]
[387815968,1758887453688,-480.0,0.00041095,120]
[387815969,1758887453698,-540.14,0.00041095,120]
[387815970,1758887453707,-480.0,0.00041095,120]
[387815971,1758887453717,-650.91,0.00041095,120]
[387815972,1758887453727,-480.0,0.00041095,120]
[387815973,1758887453736,-151.0,0.00041095,120]
[387815974,1758887453745,-480.0,0.00041095,120]
[387815975,1758887453754,-151.0,0.00041095,120]
[387815976,1758887453763,-480.0,0.00041095,120]
[387815977,1758887453772,-564.36,0.00041095,120]
[387815978,1758887453781,-915.51,0.00041095,120]
[387815979,1758887453790,-480.0,0.00041095,120]
[387815980,1758887453799,-664.71,0.00041095,120]
[387815981,1758887453808,-2018.41,0.00041095,120]
[387815982,1758887453818,-522.48,0.00041095,120]
[387815983,1758887453827,-986.89,0.00041095,120]
[387815984,1758887453836,-480.0,0.00041095,30]
[387815985,1758887453845,-480.0,0.00041095,120]
[387815986,1758887453855,-480.0,0.00041095,120]
[387815987,1758887453864,-500.0,0.00041095,120]
[387815988,1758887453873,-643.58,0.00041095,120]
[387815989,1758887453882,-484.92,0.00041095,120]
[387815990,1758887453892,-480.0,0.00041095,120]
[387815991,1758887453900,-480.0,0.00041095,120]
[387815992,1758887453909,-480.0,0.00041095,120]
[387815993,1758887453918,-480.0,0.00041095,120]
[387815994,1758887453927,-480.0,0.00041095,120]
[387815995,1758887453936,-480.0,0.00041095,120]
[387815996,1758887453945,-484.56,0.00041095,120]
[387815997,1758887453954,-859.92,0.00041095,3]
[387815998,1758887453964,-480.0,0.00041095,120]
[387815999,1758887453974,-865.92,0.00041095,120]
[387816000,1758887453983,-591.57,0.00041095,120]
[387816001,1758887453994,-480.0,0.00041095,120]
[387816002,1758887454003,-1052.9,0.00041095,120]
[387816003,1758887454020,-3154.93,0.00041095,120]
[387816004,1758887454030,-820.67,0.00041095,120]
[387816005,1758887454039,-480.0,0.00041095,120]
[387816006,1758887454049,-480.0,0.00041095,21]
[387816007,1758887454059,-643.85,0.00041095,120]
[387816008,1758887454069,-757.66,0.00041095,120]
[387816009,1758887454079,-480.0,0.00041095,120]
[387816010,1758887454088,-923.27,0.00041095,120]
[387816011,1758887454097,-743.16,0.00041095,120]
[387816012,1758887454106,-480.0,0.00041095,120]
[387816013,1758887454116,-480.0,0.00041095,120]
[387816014,1758887454126,-505.29,0.00041095,120]
[387816015,1758887454136,-480.0,0.00041095,120]
[387816016,1758887454146,-1515.82,0.00041095,120]
[387816017,1758887454155,-2225.34,0.00041095,120]
[387816018,1758887454164,-897.36,0.00041095,120]
[387816019,1758887454174,-480.0,0.00041095,120]
[387816020,1758887454183,-1178.01,0.00041095,120]
[387816021,1758887454195,-480.0,0.00041095,120]
[387816022,1758887454205,-2461.48,0.00041095,120]
[387816023,1758887454214,-721.08,0.00041095,120]
[387816024,1758887454224,-219.1,0.00041342,120]
[387816025,1758887454234,-588.38732479,0.00041342,10]
[387816026,1758887454243,-491.47692576,0.00041369,120]
[387816027,1758887454310,-480.0,0.00041369,120]
[387816028,1758887454321,-547.3877802,0.00041369,120]
[387816029,1758887454330,-304.35180977,0.00041369,120]
[387816030,1758887454339,-540.14,0.00041369,120]
[387816031,1758887454348,-151.0,0.00041369,120]
[387816032,1758887454358,-480.0,0.00041369,120]
[387816033,1758887454368,-650.91,0.00041369,120]
[387816034,1758887454378,-480.0,0.00041369,120]
[387816035,1758887454387,-461.17297583,0.00041369,120]
[387816036,1758887454396,-391.90838743,0.00041369,120]
[387816037,1758887454406,-564.36,0.00041369,120]
[387816038,1758887454415,-915.51,0.00041369,120]
[387816039,1758887454427,-480.0,0.00041369,120]
[387816040,1758887454436,-664.71,0.00041369,120]
[387816041,1758887454447,-2018.41,0.00041369,120]
[387816042,1758887454457,-522.48,0.00041369,120]
[387816043,1758887454466,-986.89,0.00041369,120]
[387816044,1758887454476,-480.0,0.00041369,30]
[387816045,1758887454486,-480.0,0.00041369,120]
[387816046,1758887454495,-480.0,0.00041369,120]
[387816047,1758887454505,-500.0,0.00041369,120]
[387816048,1758887454514,-643.58,0.00041369,120]
[387816049,1758887454523,-484.92,0.00041369,120]
[387816050,1758887454533,-480.0,0.00041369,120]
[387816051,1758887454543,-480.0,0.00041369,120]
[387816052,1758887454552,-480.0,0.00041369,120]
[387816053,1758887454562,-480.0,0.00041369,120]
[387816054,1758887454573,-480.0,0.00041369,120]
[387816055,1758887454582,-480.0,0.00041369,120]
[387816056,1758887454593,-484.56,0.00041369,120]
[387816057,1758887454602,-859.92,0.00041369,3]
[387816058,1758887454612,-480.0,0.00041369,120]
[387816059,1758887454622,-865.92,0.00041369,120]
[387816060,1758887454632,-591.57,0.00041369,120]
[387816061,1758887454642,-480.0,0.00041369,120]
[387816062,1758887454651,-1052.9,0.00041369,120]
[387816063,1758887454661,-3154.93,0.00041369,120]
[387816064,1758887454671,-820.67,0.00041369,120]
[387816065,1758887454681,-562.94248447,0.00041369,120]
[387816066,1758887454691,-480.0,0.00041369,21]
[387816067,1758887454701,-643.85,0.00041369,120]
[387816068,1758887454711,-757.66,0.00041369,120]
[387816069,1758887454720,-480.0,0.00041369,120]
[387816070,1758887454730,-923.27,0.00041369,120]
[387816071,1758887454739,-743.16,0.00041369,120]
[387816072,1758887454749,-480.0,0.00041369,120]
[387816073,1758887454758,-480.0,0.00041369,120]
[387816074,1758887454768,-505.29,0.00041369,120]
[387816075,1758887454777,-480.0,0.00041369,120]
[387816076,1758887454786,-1515.82,0.00041369,120]
[387816077,1758887454795,-2225.34,0.00041369,120]
[387816078,1758887454804,-897.36,0.00041369,120]
[387816079,1758887454814,-480.0,0.00041369,120]
[387816080,1758887454824,-1178.01,0.00041369,120]
[387816081,1758887454834,-480.0,0.00041369,120]
[387816082,1758887454843,-2461.48,0.00041369,120]
[387816083,1758887454853,-721.08,0.00041369,120]
[387816084,1758887454863,-219.1,0.00041613,120]
[387816085,1758887454873,-480.0,0.00041643,120]
[387816086,1758887454882,-540.14,0.00041643,120]
[387816087,1758887454891,-480.0,0.00041643,120]
[387816088,1758887454900,-650.91,0.00041643,120]
[387816089,1758887454909,-480.0,0.00041643,120]
[387816090,1758887454918,-564.36,0.00041643,120]
[387816091,1758887454927,-915.51,0.00041643,120]
[387816092,1758887454938,-480.0,0.00041643,120]
[387816093,1758887454947,-664.71,0.00041643,120]
[387816094,1758887454957,-2018.41,0.00041643,120]
[387816095,1758887454967,-522.48,0.00041643,120]
[387816096,1758887454976,-986.89,0.00041643,120]
[387816097,1758887454986,-480.0,0.00041643,30]
[387816098,1758887454996,-480.0,0.00041643,120]
[387816099,1758887455006,-480.0,0.00041643,120]
[387816100,1758887455016,-500.0,0.00041643,120]
[387816101,1758887455026,-643.58,0.00041643,120]
[387816102,1758887455035,-484.92,0.00041643,120]
[387816103,1758887455045,-480.0,0.00041643,120]
[387816104,1758887455055,-480.0,0.00041643,120]
[387816105,1758887455066,-480.0,0.00041643,120]
[387816106,1758887455076,-480.0,0.00041643,120]
[387816107,1758887455085,-480.0,0.00041643,120]
[387816108,1758887455095,-480.0,0.00041643,120]
[387816109,1758887455105,-484.56,0.00041643,120]
[387816110,1758887455115,-859.92,0.00041643,3]
[387816111,1758887455124,-372.06844382,0.00041643,120]
[387816112,1758887455134,-865.92,0.00041643,120]
[387816113,1758887455144,-591.57,0.00041643,120]
[387816114,1758887455154,-480.0,0.00041643,120]
[387816115,1758887455165,-1052.9,0.00041643,120]
[387816116,1758887455175,-3154.93,0.00041643,120]
[387816117,1758887455184,-820.67,0.00041643,120]
[387816118,1758887455196,-480.0,0.00041643,21]
[387816119,1758887455206,-643.85,0.00041643,120]
[387816120,1758887455216,-757.66,0.00041643,120]
[387816121,1758887455225,-480.0,0.00041643,120]
[387816122,1758887455235,-923.27,0.00041643,120]
[387816123,1758887455244,-743.16,0.00041643,120]
[387816124,1758887455253,-480.0,0.00041643,120]
[387816125,1758887455262,-480.0,0.00041643,120]
[387816126,1758887455272,-505.29,0.00041643,120]
[387816127,1758887455282,-480.0,0.00041643,120]
[387816128,1758887455291,-1515.82,0.00041643,120]
[387816129,1758887455300,-2225.34,0.00041643,120]
[387816130,1758887455309,-897.36,0.00041643,120]
[387816131,1758887455319,-480.0,0.00041643,120]
[387816132,1758887455328,-1178.01,0.00041643,120]
[387816133,1758887455338,-480.0,0.00041643,120]
[387816134,1758887455348,-2461.48,0.00041643,120]
[387816135,1758887455418,-721.08,0.00041643,120]
[387816136,1758887455428,-500.0,0.00041754,120]
[387816137,1758887455437,-219.1,0.00041884,120]
[387816138,1758887455447,-480.0,0.00041917,120]
[387816139,1758887455456,-540.14,0.00041917,120]
[387816140,1758887455465,-480.0,0.00041917,120]
[387816141,1758887455474,-650.91,0.00041917,120]
[387816142,1758887455485,-480.0,0.00041917,120]
[387816143,1758887455494,-564.36,0.00041917,120]
[387816144,1758887455503,-915.51,0.00041917,120]
[387816145,1758887455513,-480.0,0.00041917,120]
[387816146,1758887455522,-664.71,0.00041917,120]
[387816147,1758887455532,-2018.41,0.00041917,120]
[387816148,1758887455541,-986.89,0.00041917,120]
[387816149,1758887455550,-522.48,0.00041917,120]
[387816150,1758887455559,-480.0,0.00041917,30]
[387816151,1758887455569,-480.0,0.00041917,120]
[387816152,1758887455578,-480.0,0.00041917,120]
[387816153,1758887455587,-500.0,0.00041917,120]
[387816154,1758887455596,-643.58,0.00041917,120]
[387816155,1758887455606,-484.92,0.00041917,120]
[387816156,1758887455616,-480.0,0.00041917,120]
[387816157,1758887455625,-480.0,0.00041917,120]
[387816158,1758887455634,-480.0,0.00041917,120]
[387816159,1758887455643,-480.0,0.00041917,120]
[387816160,1758887455652,-480.0,0.00041917,120]
[387816161,1758887455662,-480.0,0.00041917,120]
[387816162,1758887455671,-484.56,0.00041917,120]
[387816163,1758887455680,-859.92,0.00041917,3]
[387816164,1758887455689,-865.92,0.00041917,120]
[387816165,1758887455698,-591.57,0.00041917,120]
[387816166,1758887455707,-480.0,0.00041917,120]
[387816167,1758887455717,-1052.9,0.00041917,120]
[387816168,1758887455726,-3154.93,0.00041917,120]
[387816169,1758887455735,-820.67,0.00041917,120]
[387816170,1758887455745,-480.0,0.00041917,21]
[387816171,1758887455754,-643.85,0.00041917,120]
[387816172,1758887455764,-757.66,0.00041917,120]
[387816173,1758887455773,-480.0,0.00041917,120]
[387816174,1758887455783,-923.27,0.00041917,120]
[387816175,1758887455792,-743.16,0.00041917,120]
[387816176,1758887455801,-480.0,0.00041917,120]
[387816177,1758887455811,-480.0,0.00041917,120]
[387816178,1758887455822,-505.29,0.00041917,120]
[387816179,1758887455832,-480.0,0.00041917,120]
[387816180,1758887455841,-1515.82,0.00041917,120]
[387816181,1758887455851,-2225.34,0.00041917,120]
[387816182,1758887455860,-897.36,0.00041917,120]
[387816183,1758887455869,-480.0,0.00041917,120]
[387816184,1758887455879,-1178.01,0.00041917,120]
[387816185,1758887455888,-480.0,0.00041917,120]
[387816186,1758887455897,-2461.48,0.00041917,120]
[387816187,1758887455907,-721.08,0.00041917,120]
[387816188,1758887455916,-219.1,0.00042154,120]
[387816189,1758887455925,-324.83210939,0.00042191,120]
[387816190,1758887455935,-540.14,0.00042191,120]
[387816191,1758887455945,-480.0,0.00042191,120]
[387816192,1758887455954,-650.91,0.00042191,120]
[387816193,1758887455965,-480.0,0.00042191,120]
[387816194,1758887455975,-564.36,0.00042191,120]
[387816195,1758887455985,-915.51,0.00042191,120]
[387816196,1758887455995,-621.68714831,0.00042191,120]
[387816197,1758887456004,-664.71,0.00042191,120]
[387816198,1758887456014,-2018.41,0.00042191,120]
[387816199,1758887456023,-986.89,0.00042191,120]
[387816200,1758887456032,-522.48,0.00042191,120]
[387816201,1758887456042,-480.0,0.00042191,30]
[387816202,1758887456052,-482.49666932,0.00042191,120]
[387816203,1758887456062,-480.0,0.00042191,120]
[387816204,1758887456073,-500.0,0.00042191,120]
[387816205,1758887456083,-643.58,0.00042191,120]
[387816206,1758887456092,-484.92,0.00042191,120]
[387816207,1758887456101,-480.0,0.00042191,120]
[387816208,1758887456110,-480.0,0.00042191,120]
[387816209,1758887456120,-480.0,0.00042191,120]
[387816210,1758887456130,-480.0,0.00042191,120]
[387816211,1758887456140,-480.0,0.00042191,120]
[387816212,1758887456150,-480.0,0.00042191,120]
[387816213,1758887456159,-484.56,0.00042191,120]
[387816214,1758887456169,-859.92,0.00042191,3]
[387816215,1758887456178,-865.92,0.00042191,120]
[387816216,1758887456188,-591.57,0.00042191,120]
[387816217,1758887456201,-480.0,0.00042191,120]
[387816218,1758887456210,-1052.9,0.00042191,120]
[387816219,1758887456220,-3154.93,0.00042191,120]
[387816220,1758887456230,-820.67,0.00042191,120]
[387816221,1758887456239,-480.0,0.00042191,21]
[387816222,1758887456248,-643.85,0.00042191,120]
[387816223,1758887456259,-757.66,0.00042191,120]
[387816224,1758887456268,-615.82850394,0.00042191,120]
[387816225,1758887456280,-923.27,0.00042191,120]
[387816226,1758887456290,-743.16,0.00042191,120]
[387816227,1758887456299,-480.0,0.00042191,120]
[387816228,1758887456309,-480.0,0.00042191,120]
[387816229,1758887456318,-505.29,0.00042191,120]
[387816230,1758887456327,-480.0,0.00042191,120]
[387816231,1758887456337,-1515.82,0.00042191,120]
[387816232,1758887456347,-2225.34,0.00042191,120]
[387816233,1758887456356,-897.36,0.00042191,120]
[387816234,1758887456365,-480.0,0.00042191,120]
[387816235,1758887456429,-1178.01,0.00042191,120]
[387816236,1758887456438,-318.82921203,0.00042191,120]
[387816237,1758887456448,-2461.48,0.00042191,120]
[387816238,1758887456458,-721.08,0.00042191,120]
[387816239,1758887456468,-3705.95642391,0.00042289,3]
[387816240,1758887456478,-800.0,0.00042292,14]
[387816241,1758887456487,-2000.0,0.000423,31]
[387816242,1758887456496,-219.1,0.00042425,120]
[387816243,1758887456506,-540.14,0.00042465,120]
[387816244,1758887456515,-480.0,0.00042465,120]
[387816245,1758887456525,-650.91,0.00042465,120]
[387816246,1758887456534,-480.0,0.00042465,120]
[387816247,1758887456544,-564.36,0.00042465,120]
[387816248,1758887456553,-915.51,0.00042465,120]
[387816249,1758887456563,-664.71,0.00042465,120]
[387816250,1758887456574,-2018.41,0.00042465,120]
[387816251,1758887456584,-986.89,0.00042465,120]
[387816252,1758887456594,-522.48,0.00042465,120]
[387816253,1758887456603,-480.0,0.00042465,30]
[387816254,1758887456612,-480.0,0.00042465,120]
[387816255,1758887456622,-500.0,0.00042465,120]
[387816256,1758887456631,-643.58,0.00042465,120]
[387816257,1758887456640,-484.92,0.00042465,120]
[387816258,1758887456650,-480.0,0.00042465,120]
[387816259,1758887456659,-480.0,0.00042465,120]
[387816260,1758887456669,-480.0,0.00042465,120]
[387816261,1758887456678,-480.0,0.00042465,120]
[387816262,1758887456687,-480.0,0.00042465,120]
[387816263,1758887456696,-480.0,0.00042465,120]
[387816264,1758887456706,-484.56,0.00042465,120]
[387816265,1758887456716,-859.92,0.00042465,3]
[387816266,1758887456725,-865.92,0.00042465,120]
[387816267,1758887456735,-591.57,0.00042465,120]
[387816268,1758887456744,-480.0,0.00042465,120]
[387816269,1758887456753,-1052.9,0.00042465,120]
[387816270,1758887456763,-3154.93,0.00042465,120]
[387816271,1758887456772,-820.67,0.00042465,120]
[387816272,1758887456781,-480.0,0.00042465,21]
[387816273,1758887456791,-643.85,0.00042465,120]
[387816274,1758887456800,-757.66,0.00042465,120]
[387816275,1758887456809,-923.27,0.00042465,120]
[387816276,1758887456818,-743.16,0.00042465,120]
[387816277,1758887456827,-480.0,0.00042465,120]
[387816278,1758887456836,-414.38998222,0.00042465,120]
[387816279,1758887456846,-505.29,0.00042465,120]
[387816280,1758887456861,-1515.82,0.00042465,120]
[387816281,1758887456879,-480.0,0.00042465,120]
[387816282,1758887456896,-2225.34,0.00042465,120]
[387816283,1758887456915,-897.36,0.00042465,120]
[387816284,1758887456932,-480.0,0.00042465,120]
[387816285,1758887456949,-1178.01,0.00042465,120]
[387816286,1758887456967,-2461.48,0.00042465,120]
[387816287,1758887456983,-156.755429,0.00042465,30]
[387816288,1758887456998,-156.755429,0.00042465,30]
[387816289,1758887457017,-721.08,0.00042465,120]
[387816290,1758887457036,-156.755429,0.00042465,30]
[387816291,1758887457053,-151.0,0.00042465,120]
[387816292,1758887457067,-156.755429,0.00042465,30]
[387816293,1758887457085,-960.9537887,0.00042553,2]
[387816294,1758887457100,-233.14270402,0.00042554,3]
[387816295,1758887457115,-151.0,0.00042554,3]
[387816296,1758887457129,-151.0,0.00042554,3]
[387816297,1758887457144,-151.0,0.00042554,3]
[387816298,1758887457160,-500.0,0.00042554,3]
[387816299,1758887457176,-151.0,0.00042554,3]
[387816300,1758887457190,-151.0,0.00042554,3]
[387816301,1758887457212,-151.0,0.00042554,3]
[387816302,1758887457227,-151.0,0.00042554,3]
[387816303,1758887457241,-151.0,0.00042554,3]
[387816304,1758887457256,-151.0,0.00042554,3]
[387816305,1758887457271,-152.12966294,0.00042554,3]
[387816306,1758887457285,-151.0,0.00042554,3]
[387816307,1758887457300,-151.0,0.00042554,3]
[387816308,1758887457313,-500.0,0.00042576,120]
[387816309,1758887457328,-1422.42,0.000426,14]
[387816310,1758887457342,-500.0,0.00042738,120]
[387816311,1758887457357,-500.0,0.00042738,120]
[387816312,1758887457366,-500.0,0.00042738,120]
[387816313,1758887457375,-500.0,0.00042738,120]
[387816314,1758887457385,-500.0,0.00042738,120]
[387816315,1758887457394,-500.0,0.00042738,120]
[387816316,1758887457403,-500.0,0.00042738,120]
[387816317,1758887457412,-500.0,0.00042738,120]
[387816318,1758887457422,-500.0,0.00042738,120]
[387816319,1758887457431,-500.0,0.00042738,120]
[387816320,1758887457441,-500.0,0.00042738,120]
[387816321,1758887457451,-500.0,0.00042738,120]
[387816322,1758887457460,-500.0,0.00042738,120]
[387816323,1758887457470,-500.0,0.00042738,120]
[387816324,1758887457479,-540.14,0.00042739,120]
[387816325,1758887457489,-480.0,0.00042739,120]
[387816326,1758887457645,-650.91,0.00042739,120]
[387816327,1758887457665,-480.0,0.00042739,120]
[387816328,1758887457675,-564.36,0.00042739,120]
[387816329,1758887457685,-915.51,0.00042739,120]
[387816330,1758887457695,-664.71,0.00042739,120]
[387816331,1758887457706,-2018.41,0.00042739,120]
[387816332,1758887457716,-986.89,0.00042739,120]
[387816333,1758887457726,-522.48,0.00042739,120]
[387816334,1758887457736,-480.0,0.00042739,30]
[387816335,1758887457746,-480.0,0.00042739,120]
[387816336,1758887457756,-500.0,0.00042739,120]
[387816337,1758887457766,-643.58,0.00042739,120]
[387816338,1758887457776,-484.92,0.00042739,120]
[387816339,1758887457786,-581.73936874,0.00042739,120]
[387816340,1758887457796,-185.482885,0.00042739,120]
[387816341,1758887457805,-480.0,0.00042739,120]
[387816342,1758887457815,-480.0,0.00042739,120]
[387816343,1758887457826,-557.30851942,0.00042739,120]
[387816344,1758887457835,-480.0,0.00042739,120]
[387816345,1758887457846,-151.0,0.00042739,120]
[387816346,1758887457855,-480.0,0.00042739,120]
[387816347,1758887457865,-484.56,0.00042739,120]
[387816348,1758887457874,-859.92,0.00042739,3]
[387816349,1758887457884,-865.92,0.00042739,120]
[387816350,1758887457894,-591.57,0.00042739,120]
[387816351,1758887457904,-480.0,0.00042739,120]
[387816352,1758887457913,-1052.9,0.00042739,120]
[387816353,1758887457923,-151.0,0.00042739,120]
[387816354,1758887457933,-3154.93,0.00042739,120]
[387816355,1758887457942,-820.67,0.00042739,120]
[387816356,1758887457951,-480.0,0.00042739,21]
[387816357,1758887457961,-643.85,0.00042739,120]
[387816358,1758887457971,-151.0,0.00042739,120]
[387816359,1758887457980,-757.66,0.00042739,120]
[387816360,1758887457990,-151.0,0.00042739,120]
[387816361,1758887457999,-923.27,0.00042739,120]
[387816362,1758887458008,-743.16,0.00042739,120]
[387816363,1758887458018,-480.0,0.00042739,120]
[387816364,1758887458028,-152.55254,0.00042739,120]
[387816365,1758887458037,-152.55254,0.00042739,120]
[387816366,1758887458047,-152.55254,0.00042739,120]
[387816367,1758887458057,-258.2657,0.00042739,120]
[387816368,1758887458067,-152.55254,0.00042739,120]
[387816369,1758887458077,-151.0,0.00042739,120]
[387816370,1758887458087,-505.29,0.00042739,120]
[387816371,1758887458095,-1515.82,0.00042739,120]
[387816372,1758887458105,-480.0,0.00042739,120]
[387816373,1758887458115,-2225.34,0.00042739,120]
[387816374,1758887458125,-897.36,0.00042739,120]
[387816375,1758887458134,-480.0,0.00042739,120]
[387816376,1758887458143,-1178.01,0.00042739,120]
[387816377,1758887458153,-2461.48,0.00042739,120]
[387816378,1758887458163,-721.08,0.00042739,120]
[387816379,1758887458173,-500.0,0.00042828,3]
[387816380,1758887458183,-151.0,0.00042828,3]
[387816381,1758887458194,-246.56925732,0.00042828,3]
[387816382,1758887458209,-158.11450114,0.00042828,3]
[387816383,1758887458219,-151.0,0.00042828,3]
[387816384,1758887458229,-247.61315356,0.00042828,3]
[387816385,1758887458241,-151.0,0.00042828,3]
[387816386,1758887458250,-310.26160241,0.00042861,120]
[387816387,1758887458260,-200.0,0.00042876,120]
[387816388,1758887458270,-200.0,0.00042876,120]
[387816389,1758887458281,-163.0,0.00043,90]
[387816390,1758887458292,-540.14,0.00043013,120]
[387816391,1758887458301,-480.0,0.00043013,120]
[387816392,1758887458311,-650.91,0.00043013,120]
[387816393,1758887458320,-480.0,0.00043013,120]
[387816394,1758887458329,-564.36,0.00043013,120]
[387816395,1758887458338,-915.51,0.00043013,120]
[387816396,1758887458347,-664.71,0.00043013,120]
[387816397,1758887458357,-2018.41,0.00043013,120]
[387816398,1758887458366,-986.89,0.00043013,120]
[387816399,1758887458375,-522.48,0.00043013,120]
[387816400,1758887458385,-480.0,0.00043013,30]
[387816401,1758887458394,-480.0,0.00043013,120]
[387816402,1758887458403,-500.0,0.00043013,120]
[387816403,1758887458412,-643.58,0.00043013,120]
[387816404,1758887458422,-484.92,0.00043013,120]
[387816405,1758887458431,-480.0,0.00043013,120]
[387816406,1758887458440,-480.0,0.00043013,120]
[387816407,1758887458449,-494.34315033,0.00043013,120]
[387816408,1758887458459,-480.0,0.00043013,120]
[387816409,1758887458468,-484.56,0.00043013,120]
[387816410,1758887458477,-859.92,0.00043013,3]
[387816411,1758887458487,-865.92,0.00043013,120]
[387816412,1758887458496,-591.57,0.00043013,120]
[387816413,1758887458505,-480.0,0.00043013,120]
[387816414,1758887458514,-1052.9,0.00043013,120]
[387816415,1758887458523,-3154.93,0.00043013,120]
[387816416,1758887458533,-820.67,0.00043013,120]
[387816417,1758887458542,-480.0,0.00043013,21]
[387816418,1758887458551,-643.85,0.00043013,120]
[387816419,1758887458560,-757.66,0.00043013,120]
[387816420,1758887458571,-923.27,0.00043013,120]
[387816421,1758887458581,-743.16,0.00043013,120]
[387816422,1758887458590,-480.0,0.00043013,120]
[387816423,1758887458599,-505.29,0.00043013,120]
[387816424,1758887458609,-1515.82,0.00043013,120]
[387816425,1758887458617,-480.0,0.00043013,120]
[387816426,1758887458627,-2225.34,0.00043013,120]
[387816427,1758887458637,-897.36,0.00043013,120]
[387816428,1758887458646,-480.0,0.00043013,120]
[387816429,1758887458655,-1178.01,0.00043013,120]
[387816430,1758887458665,-2461.48,0.00043013,120]